bitfinex/quotes_SOLUSD_20251127
["timestamp","ask_amount","ask_price","bid_price","bid_amount"]
[1764246215951,7.78071083,141.63,141.59,9.20749103]
[1764246216154,7.78071083,141.63,141.59,7.06249029]
[1764246216469,0.72,141.63,141.6,2.14500074]
[1764246216653,3.12,141.63,141.58,24.72076862]
[1764246216853,3.84,141.63,141.59,2.14500074]
[1764246217070,2.86500074,141.62,141.57,9.20847517]
[1764246217274,2.86500074,141.62,141.57,7.46245054]
[1764246217452,0.72,141.61,141.57,7.46245054]
[1764246217653,3.12,141.6,141.57,7.46245054]
[1764246218377,3.84,141.6,141.57,7.46245054]
[1764246219352,3.84,141.6,141.57,5.3174498]
[1764246219679,0.72,141.59,141.57,7.46245054]
[1764246219863,0.72,141.59,141.57,5.3174498]
[1764246220063,0.72,141.59,141.57,7.46245054]
[1764246220475,0.72,141.59,141.57,2.14500074]
[1764246222581,0.72,141.59,141.57,9.20832641]
[1764246223573,0.67,141.63,141.58,2.14500074]
[1764246223784,3.79,141.62,141.59,2.14500074]
[1764246224255,3.12,141.62,141.59,2.14500074]
[1764246224460,0.67,141.62,141.6,2.14500074]
[1764246224883,0.67,141.62,141.6,9.20708893]
[1764246225176,7.73115668,141.62,141.6,2.14500074]
[1764246225383,7.73115668,141.62,141.58,9.20799388]
[1764246225601,0.67,141.61,141.58,7.06299314]
[1764246225779,0.67,141.61,141.58,9.20799388]
[1764246226101,7.06115668,141.62,141.59,2.14500074]
[1764246226389,7.06115668,141.62,141.58,7.06299314]
[1764246226390,3.79,141.62,141.6,2.14500074]
[1764246226695,0.67,141.64,141.61,2.14500074]
[1764246226862,3.79,141.64,141.61,2.14500074]
[1764246227062,0.67,141.64,141.61,2.14500074]
[1764246228091,0.67,141.64,141.62,2.14500074]
[1764246228290,0.67,141.64,141.61,2.14500074]
[1764246228792,0.67,141.64,141.62,2.14500074]
[1764246228996,0.67,141.64,141.61,9.20644265]
[1764246229575,0.67,141.64,141.61,2.14500074]
[1764246229776,0.67,141.67,141.63,2.14500074]
[1764246229961,0.67,141.67,141.61,8.58000296]
[1764246230571,0.67,141.67,141.64,2.14500074]
[1764246230777,0.67,141.67,141.64,9.20513832]
[1764246230974,2.14500074,141.7,141.65,2.14500074]
[1764246231171,2.14500074,141.7,141.64,7.06013758]
[1764246231172,3.12,141.68,141.66,2.14500074]
[1764246231686,3.79,141.68,141.66,2.14500074]
[1764246232593,3.79,141.68,141.66,0.17181907]
[1764246234370,0.67,141.67,141.64,7.0600986]
[1764246234578,0.67,141.67,141.64,9.20509934]
[1764246235674,0.67,141.67,141.64,7.91543961]
[1764246237998,0.67,141.67,141.65,2.14500074]
[1764246238484,3.12,141.68,141.65,2.14500074]
[1764246238691,3.12,141.68,141.64,23.42082011]
[1764246238900,3.12,141.68,141.66,2.14500074]
[1764246239412,3.79,141.68,141.66,2.14500074]
[1764246239609,3.79,141.68,141.66,9.20384487]
[1764246240114,3.79,141.68,141.67,2.14500074]
[1764246240312,3.79,141.68,141.66,9.20384487]
[1764246240474,0.67,141.68,141.66,9.20384487]
[1764246240679,0.67,141.69,141.67,2.14500074]
[1764246241497,0.67,141.69,141.66,9.20384487]
[1764246241693,0.67,141.69,141.64,17.65038124]
[1764246241873,0.67,141.69,141.65,2.14500074]
[1764246242399,0.67,141.69,141.64,17.65038124]
[1764246242578,0.67,141.69,141.65,2.14500074]
[1764246242993,0.67,141.69,141.65,9.20442216]
[1764246243377,0.67,141.69,141.66,2.14500074]
[1764246244199,0.67,141.69,141.65,2.14500074]
[1764246244888,0.67,141.69,141.65,0.06481334]
[1764246245688,0.67,141.69,141.66,9.20366847]
[1764246247101,3.79,141.69,141.66,9.20366847]
[1764246247312,0.67,141.68,141.66,9.20366847]
[1764246247507,0.67,141.69,141.67,2.14500074]
[1764246247688,0.67,141.69,141.68,2.14500074]
[1764246247995,3.12,141.7,141.67,2.14500074]
[1764246248209,3.79,141.7,141.67,2.14500074]
[1764246248497,0.67,141.69,141.67,2.14500074]
[1764246248706,0.67,141.69,141.68,2.14500074]
[1764246248879,3.12,141.7,141.68,2.14500074]
[1764246249075,3.12,141.7,141.69,2.14500074]
[1764246249503,0.1,141.72,141.69,9.20236154]
[1764246249707,3.92,141.72,141.7,2.14500074]
[1764246250009,3.92,141.72,141.69,2.14500074]
[1764246250197,0.66,141.71,141.69,2.14500074]
[1764246250905,0.66,141.71,141.67,24.70465847]
[1764246251211,0.66,141.71,141.69,2.14500074]
[1764246251380,0.66,141.71,141.68,2.14500074]
[1764246252482,0.66,141.71,141.69,7.05766109]
[1764246253187,0.66,141.71,141.68,7.05800865]
[1764246254114,0.66,141.71,141.68,8.09425069]
[1764246256706,0.66,141.71,141.68,5.94924995]
[1764246257207,0.66,141.71,141.67,2.14500074]
[1764246259310,0.66,141.71,141.68,7.05815923]
[1764246259685,0.66,141.71,141.68,9.20315997]
[1764246260085,0.66,141.71,141.67,17.64610683]
[1764246260285,0.66,141.71,141.68,2.14500074]
[1764246260481,3.78,141.71,141.68,2.14500074]
[1764246260788,0.66,141.7,141.68,2.14500074]
[1764246261490,3.12,141.71,141.69,2.14500074]
[1764246261695,3.12,141.71,141.7,2.14500074]
[1764246262095,3.78,141.71,141.69,2.14500074]
[1764246262485,0.66,141.7,141.66,75.0]
[1764246262684,0.66,141.7,141.66,2.14500074]
[1764246262882,0.66,141.7,141.66,9.20411027]
[1764246263100,0.66,141.7,141.66,8.65919445]
[1764246263300,0.66,141.7,141.67,2.14500074]
[1764246263501,0.66,141.7,141.68,7.05815923]
[1764246266222,0.66,141.7,141.67,3.34948289]
[1764246267708,0.66,141.7,141.68,7.05815923]
[1764246268220,0.1,141.72,141.69,3.34948289]
[1764246268515,0.1,141.72,141.7,3.34948289]
[1764246269189,0.1,141.72,141.71,7.05666502]
[1764246269620,0.1,141.72,141.71,10.40614791]
[1764246270691,0.1,141.77,141.73,8.80994492]
[1764246270890,0.1,141.77,141.74,3.34948289]
[1764246271096,0.1,141.77,141.76,3.34948289]
[1764246271302,0.1,141.77,141.76,10.40365896]
[1764246272409,0.1,141.77,141.76,8.73403137]
[1764246275396,0.1,141.77,141.76,7.4531575]
[1764246276492,0.1,141.77,141.76,107.57196642]
[1764246276695,0.1,141.77,141.76,26.71252296]
[1764246277816,0.1,141.77,141.76,110.52246788]
[1764246278417,0.1,141.77,141.76,16.308864]
[1764246280103,0.78,141.77,141.74,37.06561967]
[1764246280428,0.78,141.77,141.75,7.05467372]
[1764246280607,0.1,141.77,141.75,7.05467372]
[1764246281124,0.78,141.77,141.75,7.05467372]
[1764246281430,0.78,141.77,141.75,5.38835057]
[1764246283131,0.1,141.77,141.75,5.38835057]
[1764246283434,0.1,141.77,141.76,10.40365896]
[1764246284614,0.1,141.77,141.76,9.14827741]
[1764246286124,0.1,141.77,141.76,10.40365896]
[1764246286339,0.1,141.77,141.76,7.05417607]
[1764246286527,0.1,141.77,141.76,10.40365896]
[1764246287528,0.1,141.77,141.76,9.32152746]
[1764246290826,0.1,141.77,141.76,3.34948289]
[1764246292017,0.1,141.77,141.76,10.40365896]
[1764246293526,0.1,141.77,141.76,7.05417607]
[1764246293729,0.1,141.77,141.75,87.15942781]
[1764246294515,0.1,141.77,141.76,3.34948289]
[1764246294721,0.1,141.77,141.76,7.05417607]
[1764246295032,0.1,141.77,141.76,10.40365896]
[1764246295637,0.1,141.77,141.76,22.33360388]
[1764246296836,0.1,141.77,141.76,15.27942781]
[1764246297337,0.1,141.77,141.76,11.92994492]
[1764246297635,0.1,141.77,141.76,15.27942781]
[1764246298423,0.1,141.77,141.76,22.33360388]
[1764246299832,0.1,141.77,141.76,19.43051862]
[1764246300031,0.1,141.77,141.76,13.52365896]
[1764246300616,0.78,141.77,141.76,7.05417607]
[1764246300816,4.12948289,141.77,141.75,7.054362]
[1764246301318,0.68,141.76,141.75,7.054362]
[1764246302926,0.68,141.76,141.75,5.9407063]
[1764246303332,4.02948289,141.76,141.74,7.05502452]
[1764246303544,4.02948289,141.76,141.73,7.05551973]
[1764246303844,0.68,141.75,141.73,7.05551973]
[1764246306048,0.68,141.75,141.72,37.06875979]
[1764246306931,4.02948289,141.75,141.73,7.05551973]
[1764246307436,4.02948289,141.74,141.73,7.05551973]
[1764246307829,0.68,141.74,141.73,7.05551973]
[1764246308951,0.68,141.74,141.73,5.24541232]
[1764246309121,0.68,141.76,141.73,3.34948289]
[1764246309319,0.68,141.76,141.72,19.65834689]
[1764246309752,0.68,141.76,141.73,3.34948289]
[1764246310245,0.68,141.76,141.73,28.04417569]
[1764246311223,0.1,141.77,141.74,3.34948289]
[1764246311542,0.1,141.77,141.75,3.34948289]
[1764246311730,0.1,141.77,141.76,15.27942781]
[1764246311928,3.44948289,141.82,141.77,83.80994492]
[1764246311929,0.72,141.81,141.77,83.80994492]
[1764246312129,0.72,141.81,141.79,3.34948289]
[1764246312335,0.98139895,141.82,141.8,3.34948289]
[1764246312549,1.70139895,141.82,141.8,3.34948289]
[1764246312923,0.98139895,141.82,141.81,23.36055287]
[1764246313123,0.1,141.82,141.81,26.71003576]
[1764246313622,0.98139895,141.82,141.81,35.51998068]
[1764246313828,0.1,141.82,141.81,35.51998068]
[1764246315149,0.1,141.82,141.81,33.04873352]
[1764246315328,0.1,141.82,141.81,33.19089509]
[1764246318147,0.1,141.82,141.81,31.86602102]
[1764246321234,0.1,141.82,141.81,29.86763466]
[1764246321642,0.1,141.82,141.81,26.51815177]
[1764246321849,0.1,141.82,141.81,29.86763466]
[1764246322635,0.1,141.86,141.85,8.80994492]
[1764246322839,0.1,141.86,141.85,15.40158938]
[1764246323031,0.98115043,141.86,141.85,15.40158938]
[1764246323241,0.98115043,141.86,141.85,31.56829181]
[1764246323447,0.82,141.86,141.85,31.56829181]
[1764246323834,0.82,141.86,141.85,22.75834689]
[1764246324332,0.1,141.86,141.85,20.67762745]
[1764246324532,0.98115043,141.86,141.85,20.67762745]
[1764246324733,0.98115043,141.86,141.85,27.72732783]
[1764246324949,1.70115043,141.86,141.85,27.72732783]
[1764246326544,1.70115043,141.86,141.85,26.51589256]
[1764246327261,1.70115043,141.86,141.85,24.7799889]
[1764246330339,1.70115043,141.86,141.85,22.86338757]
[1764246332372,1.70115043,141.86,141.85,7.04970038]
[1764246333540,0.98115043,141.86,141.85,18.44691162]
[1764246333743,0.82,141.86,141.85,18.44691162]
[1764246334562,0.82,141.86,141.85,25.496612]
[1764246334751,0.82,141.86,141.85,23.35856438]
[1764246336462,0.82,141.86,141.85,21.52816563]
[1764246337252,0.82,141.86,141.84,7.05009852]
[1764246337457,0.88121254,141.85,141.84,7.05009852]
[1764246337960,1.60121254,141.85,141.84,7.05009852]
[1764246339645,1.60121254,141.85,141.84,5.47750079]
[1764246342586,1.60121254,141.85,141.83,19.76361355]
[1764246342868,0.72,141.84,141.83,19.76361355]
[1764246343044,1.60127467,141.84,141.83,19.76361355]
[1764246343244,0.72,141.84,141.83,19.76361355]
[1764246343664,0.72,141.84,141.83,26.81430804]
[1764246345070,1.70115043,141.86,141.83,26.81430804]
[1764246345287,1.70115043,141.86,141.85,2.13804762]
[1764246345288,0.1,141.86,141.85,2.13804762]
[1764246345876,0.82,141.86,141.85,2.13804762]
[1764246347079,0.82,141.86,141.85,9.187748]
[1764246347670,0.82,141.86,141.85,7.04970038]
[1764246348181,0.82,141.86,141.85,9.187748]
[1764246348755,0.82,141.86,141.85,2.13804762]
[1764246349162,0.82,141.86,141.83,17.62556593]
[1764246349366,0.88121254,141.85,141.83,17.62556593]
[1764246349757,1.60121254,141.85,141.84,7.0501974]
[1764246350482,1.60121254,141.85,141.84,9.18824502]
[1764246351884,1.60121254,141.85,141.84,7.86012751]
[1764246352074,0.88121254,141.85,141.84,7.86012751]
[1764246352462,0.98115043,141.86,141.84,7.86012751]
[1764246352666,1.70115043,141.86,141.85,2.13804762]
[1764246352869,0.82,141.86,141.85,2.13804762]
[1764246353785,0.82,141.86,141.85,9.187748]
[1764246354369,0.82,141.86,141.85,7.04970038]
[1764246354876,0.82,141.86,141.84,2.13804762]
[1764246354877,0.82,141.86,141.83,2.13804762]
[1764246355077,0.88121254,141.85,141.83,2.13804762]
[1764246355478,0.72,141.84,141.83,2.13804762]
[1764246356581,0.72,141.84,141.83,9.18874211]
[1764246357970,0.72,141.84,141.83,7.78031945]
[1764246358898,0.72,141.84,141.83,7.05069449]
[1764246359493,2.85804762,141.84,141.8,33.9386206]
[1764246359666,0.88133681,141.83,141.8,33.9386206]
[1764246359872,1.60133681,141.83,141.8,33.9386206]
[1764246360375,0.72,141.82,141.8,33.9386206]
[1764246360582,0.72,141.82,141.81,7.05146743]
[1764246361191,0.72,141.82,141.8,33.9386206]
[1764246362386,0.72,141.82,141.8,23.36081141]
[1764246362788,0.72,141.82,141.8,25.49885903]
[1764246363585,0.72,141.82,141.8,7.05194741]
[1764246363897,2.13804762,141.81,141.77,7.0536625]
[1764246364199,2.13804762,141.8,141.76,16.308864]
[1764246364575,0.72,141.79,141.76,16.308864]
[1764246365781,0.72,141.79,141.76,23.36304007]
[1764246366877,0.72,141.79,141.76,7.05417607]
[1764246367071,2.85804762,141.79,141.76,5.63198626]
[1764246367488,0.72,141.78,141.76,5.63198626]
[1764246367684,0.72,141.78,141.75,17.63615859]
[1764246367685,0.72,141.78,141.75,24.69083231]
[1764246368288,0.72,141.78,141.75,7.05467372]
[1764246370280,0.72,141.78,141.74,17.63742782]
[1764246370474,2.85804762,141.78,141.73,21.54691162]
[1764246370680,0.66,141.77,141.74,16.308864]
[1764246371400,0.66,141.77,141.76,2.13804762]
[1764246371896,0.66,141.77,141.76,9.19222369]
[1764246373295,0.66,141.77,141.76,2.13804762]
[1764246374487,0.66,141.77,141.76,7.05417607]
[1764246376306,0.66,141.77,141.75,2.13804762]
[1764246377294,0.66,141.77,141.76,7.05417607]
[1764246378911,0.66,141.77,141.75,7.05467372]
[1764246379285,0.66,141.77,141.74,7.05493799]
[1764246379486,2.79804762,141.77,141.74,5.37242781]
[1764246379708,9.85183919,141.77,141.74,5.37242781]
[1764246380006,0.66,141.76,141.73,9.19349468]
[1764246380309,0.66,141.76,141.74,2.13804762]
[1764246381005,0.66,141.76,141.75,2.13804762]
[1764246382509,0.66,141.76,141.73,95.36686825]
[1764246382709,0.66,141.77,141.75,2.13804762]
[1764246383299,0.66,141.77,141.76,7.05417607]
[1764246385199,0.66,141.77,141.75,7.05467372]
[1764246385711,0.66,141.77,141.74,19.77476242]
[1764246386706,0.66,141.77,141.74,28.03811292]
[1764246388814,0.66,141.77,141.74,26.63311269]
[1764246389109,0.66,141.78,141.75,3.34622668]
[1764246390891,0.66,141.78,141.76,7.05417607]
[1764246391618,0.66,141.78,141.76,6.04939438]
[1764246394711,0.66,141.78,141.75,20.78237137]
[1764246395906,0.66,141.78,141.76,7.05417607]
[1764246397318,0.604405,141.78,141.75,24.69081841]
[1764246397818,0.385757,141.78,141.75,23.47113545]
[1764246397999,10.39851905,141.8,141.75,23.47113545]
[1764246398721,10.07876205,141.8,141.75,23.47113545]
[1764246399019,9.96123105,141.8,141.75,23.27113545]
[1764246399217,9.74259805,141.8,141.75,23.27113545]
[1764246399429,9.74259805,141.8,141.75,23.07113545]
[1764246399721,9.74259805,141.8,141.75,22.87113545]
[1764246400015,0.222766,141.79,141.75,22.87113545]
[1764246400216,0.222766,141.79,141.75,22.67113545]
[1764246400605,9.74259805,141.8,141.75,22.47113545]
[1764246400808,9.74259805,141.8,141.75,21.24111964]
[1764246401004,6.17775437,141.8,141.75,21.24111964]
[1764246401209,6.17775437,141.8,141.75,21.04111964]
[1764246401210,9.52398105,141.8,141.75,21.04111964]
[1764246401610,9.30536405,141.8,141.75,21.56111964]
[1764246401809,3.34622668,141.79,141.75,20.84111964]
[1764246402118,3.34622668,141.79,141.75,21.56111964]
[1764246402334,3.12760968,141.79,141.75,21.36111964]
[1764246402514,0.69,141.78,141.75,20.44111964]
[1764246402832,0.471367,141.78,141.75,21.16111964]
[1764246403033,0.252734,141.78,141.75,7.77467372]
[1764246403339,0.252734,141.78,141.75,7.57467372]
[1764246403629,0.034101,141.78,141.75,7.37467372]
[1764246403830,0.034101,141.78,141.75,5.53342749]
[1764246404139,9.12081705,141.8,141.75,0.72]
[1764246404305,9.12081705,141.8,141.75,0.52]
[1764246404501,8.91523505,141.8,141.75,0.52]
[1764246404710,0.19,141.79,141.75,0.32]
[1764246404933,3.31760968,141.8,141.75,24.81081841]
[1764246405231,0.2,141.79,141.75,24.81081841]
[1764246405433,3.29899268,141.8,141.75,24.81081841]
[1764246405623,0.12,141.79,141.75,24.61081841]
[1764246405828,3.23899268,141.8,141.75,27.95704509]
[1764246406009,0.2,141.79,141.75,27.95704509]
[1764246406437,3.32762468,141.8,141.75,28.67704509]
[1764246406729,3.10902268,141.8,141.75,28.47704509]
[1764246406939,3.10902268,141.8,141.75,21.70237137]
[1764246407137,2.89042068,141.8,141.75,21.70237137]
[1764246407419,2.89042068,141.8,141.77,3.34622668]
[1764246407420,0.2,141.8,141.77,3.34622668]
[1764246407726,0.2,141.79,141.76,3.66622668]
[1764246407920,6.20899268,141.81,141.76,3.66622668]
[1764246408108,0.4,141.8,141.76,3.46622668]
[1764246408302,0.22,141.8,141.77,7.05367849]
[1764246408505,6.17037368,141.81,141.77,6.85367849]
[1764246408904,5.95181768,141.81,141.77,6.85367849]
[1764246409122,5.95181768,141.81,141.77,6.65367849]
[1764246409328,5.73326168,141.81,141.77,6.65367849]
[1764246409626,5.51465968,141.81,141.77,6.45367849]
[1764246409919,5.51465968,141.81,141.77,6.25367849]
[1764246410223,5.29605768,141.81,141.76,34.06368331]
[1764246410422,0.04,141.8,141.76,33.86368331]
[1764246410625,0.04,141.8,141.76,37.20990999]
[1764246410826,5.11745568,141.81,141.76,37.72990999]
[1764246411208,4.89885368,141.81,141.77,7.05367849]
[1764246411610,4.68025168,141.81,141.77,7.05367849]
[1764246411925,4.68025168,141.81,141.77,6.85367849]
[1764246412113,4.46166568,141.81,141.77,6.85367849]
[1764246412437,3.12764068,141.8,141.77,6.65367849]
[1764246412734,3.46622668,141.8,141.77,6.45367849]
[1764246412918,3.24762468,141.8,141.77,6.45367849]
[1764246413236,3.24762468,141.8,141.76,34.18368331]
[1764246413531,3.02902268,141.8,141.76,33.98368331]
[1764246413838,2.81040568,141.8,141.76,33.78368331]
[1764246414231,4.24304868,141.81,141.77,7.05367849]
[1764246414531,4.24304868,141.81,141.77,6.85367849]
[1764246414704,4.02443168,141.81,141.77,6.65367849]
[1764246415105,3.80581468,141.81,141.77,6.45367849]
[1764246415431,3.58721268,141.81,141.77,6.45367849]
[1764246415828,3.36861068,141.81,141.77,6.45367849]
[1764246416030,3.36861068,141.81,141.77,6.25367849]
[1764246416208,6.25002468,141.81,141.76,37.12990999]
[1764246416411,6.25002468,141.81,141.76,36.92990999]
[1764246417541,6.25002468,141.81,141.77,7.05367849]
[1764246417830,0.69,141.8,141.77,7.05367849]
[1764246418827,0.69,141.8,141.77,25.40787472]
[1764246419213,0.69,141.8,141.77,18.35419623]
[1764246419414,0.69,141.8,141.77,17.63419623]
[1764246420231,7.74227561,141.8,141.73,20.73851018]
[1764246420427,7.74227561,141.8,141.71,0.72]
[1764246420428,3.34622668,141.76,141.71,0.72]
[1764246420633,3.34622668,141.75,141.72,0.72]
[1764246420839,4.03622668,141.75,141.72,0.72]
[1764246421034,0.69,141.75,141.72,0.72]
[1764246421243,0.69,141.74,141.7,12.1561716]
[1764246421542,0.69,141.74,141.71,25.41751844]
[1764246421916,0.69,141.75,141.72,0.72]
[1764246422325,0.69,141.75,141.71,24.12629912]
[1764246423241,0.69,141.75,141.71,27.4725258]
[1764246424343,3.34622668,141.74,141.71,24.12629912]
[1764246424542,3.34622668,141.74,141.71,6.4854457]
[1764246424845,0.69,141.73,141.71,6.4854457]
[1764246425441,0.69,141.73,141.7,17.0145803]
[1764246425640,4.03622668,141.73,141.7,0.7057163]
[1764246426022,0.69,141.72,141.7,0.7057163]
[1764246426540,0.69,141.72,141.7,7.76270877]
[1764246426723,0.69,141.72,141.69,24.70115286]
[1764246427117,0.69,141.72,141.7,0.38009187]
[1764246428443,0.69,141.72,141.69,24.43847263]
[1764246429549,0.69,141.72,141.69,23.92847263]
[1764246430321,3.34622668,141.71,141.68,7.0579408]
[1764246430516,4.03622668,141.72,141.68,7.0579408]
[1764246430720,0.68,141.71,141.68,7.0579408]
[1764246430930,0.68,141.72,141.68,28.04956556]
[1764246431141,0.68,141.73,141.69,0.51]
[1764246431341,3.34622668,141.74,141.68,26.45217967]
[1764246431521,0.68,141.72,141.68,26.45217967]
[1764246431722,0.68,141.74,141.69,3.34622668]
[1764246432047,0.68,141.73,141.7,3.34622668]
[1764246432223,0.68,141.73,141.71,7.05666502]
[1764246433721,0.68,141.73,141.71,10.4028917]
[1764246434116,0.68,141.73,141.71,28.04455425]
[1764246434522,0.68,141.73,141.71,26.7879947]
[1764246436046,0.68,141.73,141.71,23.44176802]
[1764246437140,0.68,141.73,141.71,5.80010547]
[1764246437339,4.02622668,141.73,141.7,7.05693398]
[1764246437525,4.02622668,141.73,141.7,5.89735572]
[1764246437726,0.68,141.72,141.7,5.89735572]
[1764246440533,0.68,141.72,141.69,33.95272309]
[1764246442057,0.68,141.72,141.69,37.29894977]
[1764246442444,0.68,141.72,141.7,7.05693398]
[1764246443554,0.68,141.72,141.69,37.29894977]
[1764246444838,0.68,141.72,141.7,7.05693398]
[1764246446545,0.68,141.72,141.68,10.40438591]
[1764246446751,0.68,141.72,141.68,8.71477588]
[1764246446962,0.68,141.72,141.68,26.36017396]
[1764246447652,0.68,141.72,141.69,3.34622668]
[1764246448561,0.68,141.72,141.7,7.05716302]
[1764246449534,2.82318259,141.72,141.67,2.14318259]
[1764246449749,2.82318259,141.72,141.66,5.44318259]
[1764246449750,7.73618008,141.72,141.66,5.44318259]
[1764246449961,2.82318259,141.71,141.66,5.44318259]
[1764246450256,0.68,141.71,141.66,5.44318259]
[1764246450466,0.68,141.7,141.67,2.14318259]
[1764246450648,9.19904034,141.73,141.68,2.14318259]
[1764246450849,0.68,141.72,141.68,2.14318259]
[1764246451050,0.68,141.72,141.69,2.14318259]
[1764246452643,0.68,141.72,141.7,7.05716302]
[1764246452841,0.68,141.72,141.7,5.45715646]
[1764246454860,0.68,141.72,141.69,7.05766109]
[1764246455639,0.68,141.72,141.69,24.70181381]
[1764246455839,0.68,141.72,141.69,17.64415272]
[1764246456878,0.68,141.72,141.69,24.70181381]
[1764246459045,0.68,141.72,141.69,21.82711822]
[1764246462059,0.68,141.72,141.69,7.05766109]
[1764246463468,0.68,141.72,141.67,24.70530104]
[1764246463668,0.68,141.72,141.68,2.14318259]
[1764246465056,0.68,141.72,141.69,7.05766109]
[1764246466275,0.68,141.72,141.69,24.70181381]
[1764246468079,0.68,141.72,141.69,23.496239]
[1764246469878,0.68,141.72,141.67,24.70530104]
[1764246470081,1.56202088,141.72,141.68,2.14318259]
[1764246470660,0.7,141.71,141.68,2.14318259]
[1764246472160,0.88214537,141.7,141.69,7.05766109]
[1764246473077,1.58214537,141.7,141.69,7.05766109]
[1764246473868,0.88214537,141.7,141.69,7.05766109]
[1764246474289,0.88214537,141.7,141.68,7.05815923]
[1764246476367,1.58220763,141.69,141.68,7.05815923]
[1764246477286,1.58220763,141.69,141.68,5.39777751]
[1764246478474,1.58220763,141.69,141.67,24.70530104]
[1764246480079,0.7,141.68,141.67,24.70530104]
[1764246480279,1.5822699,141.68,141.66,3.3]
[1764246480481,0.7,141.67,141.66,0.2]
[1764246481095,1.58233218,141.67,141.66,0.2]
[1764246481287,0.7,141.67,141.66,0.2]
[1764246481500,1.58233218,141.67,141.66,7.25893966]
[1764246481690,0.7,141.67,141.66,7.25893966]
[1764246483373,0.7,141.67,141.66,6.02360069]
[1764246486479,0.7,141.67,141.65,17.64857988]
[1764246486680,0.88239446,141.66,141.65,17.64857988]
[1764246487578,0.88239446,141.66,141.65,24.70823395]
[1764246489202,0.69130618,141.66,141.65,24.70823395]
[1764246489598,0.6912439,141.67,141.65,23.13062064]
[1764246489899,0.88239446,141.66,141.65,23.13062064]
[1764246490100,0.88233218,141.67,141.65,23.13062064]
[1764246490495,1.56233218,141.67,141.65,23.13062064]
[1764246490800,0.88239446,141.66,141.65,25.27380323]
[1764246491000,0.88233218,141.67,141.65,25.27380323]
[1764246491193,2.82318259,141.71,141.64,78.1]
[1764246491194,0.88239446,141.66,141.64,7.06014383]
[1764246491389,0.8822699,141.68,141.64,26.85370766]
[1764246491705,1.5622699,141.68,141.64,26.85370766]
[1764246492201,0.8822699,141.68,141.66,2.14318259]
[1764246492505,0.8822699,141.68,141.67,0.50321476]
[1764246492877,0.8822699,141.68,141.66,2.14318259]
[1764246493485,0.8822699,141.68,141.67,7.05865744]
[1764246495706,0.8822699,141.68,141.67,5.53411669]
[1764246496791,0.8822699,141.68,141.67,2.14318259]
[1764246498401,0.8822699,141.68,141.67,9.20184003]
[1764246498603,0.8822699,141.68,141.67,8.45685407]
[1764246498804,1.5622699,141.68,141.67,6.31367148]
[1764246499004,0.68,141.69,141.67,6.31367148]
[1764246499205,0.8822699,141.68,141.67,6.31367148]
[1764246499786,1.5622699,141.68,141.67,6.31367148]
[1764246500403,1.5622699,141.68,141.66,17.64664985]
[1764246500707,0.68,141.67,141.66,17.64664985]
[1764246500910,1.56233218,141.67,141.66,17.64664985]
[1764246501096,0.68,141.67,141.66,17.64664985]
[1764246501396,1.56233218,141.67,141.66,17.64664985]
[1764246501705,0.68,141.67,141.66,16.5834647]
[1764246501892,1.56233218,141.67,141.66,16.5834647]
[1764246502086,0.68,141.67,141.66,16.5834647]
[1764246502298,1.56233218,141.67,141.66,16.5834647]
[1764246504610,1.56233218,141.67,141.65,7.05965407]
[1764246504791,0.68,141.66,141.64,20.7497015]
[1764246505110,0.88245675,141.65,141.64,20.7497015]
[1764246505489,0.88245675,141.65,141.64,22.89288409]
[1764246505811,0.88239446,141.66,141.64,29.95303658]
[1764246505998,0.88245675,141.65,141.64,27.80985399]
[1764246506198,0.68,141.68,141.64,29.95303658]
[1764246506199,0.88233218,141.67,141.64,29.95303658]
[1764246506691,1.56233218,141.67,141.64,29.95303658]
[1764246506892,0.88239446,141.66,141.65,8.80994492]
[1764246507096,0.88220763,141.69,141.65,83.80994492]
[1764246507610,1.56220763,141.69,141.65,83.80994492]
[1764246507804,0.8822699,141.68,141.65,80.83290521]
[1764246508004,1.5622699,141.68,141.65,2.14318259]